[Event "Titled Tuesday Blitz January 31 Late 2023"]
[White "Duda, Jan-Krzysztof"]
[Black "Galchenko, Matvey"]
[WhiteFideId "1170546"]
[BlackFideId "24175480"]
[WhiteElo "2724"]
[BlackElo "2438"]
[Result "1-0"]
[Round "09"]
[TimeControl "180+2"]
[Date "2023.01.31"]
[WhiteClock "0:00:04"]
[BlackClock "0:00:04"]

1. b4 {[%clk 0:03:00]}  c6 {[%clk 0:02:58]} 2. Bb2 {[%clk 0:03:00]}  a5 {[%clk 0:02:58]} 3. a3 {[%clk 0:03:00]}  axb4 {[%clk 0:02:57]} 4. axb4 {[%clk 0:03:01]}  Rxa1 {[%clk 0:02:57]} 5. Bxa1 {[%clk 0:03:02]}  Qb6 {[%clk 0:02:58]} 6. c3 {[%clk 0:02:53]}  e5 {[%clk 0:02:57]} 7. e3 {[%clk 0:02:53]}  d5 {[%clk 0:02:57]} 8. Nf3 {[%clk 0:02:53]}  Bd6 {[%clk 0:02:55]} 9. c4 {[%clk 0:02:51]}  Qxb4 {[%clk 0:02:48]} 10. cxd5 {[%clk 0:02:51]}  Nf6 {[%clk 0:02:45]} 11. Nxe5 {[%clk 0:02:47]}  cxd5 {[%clk 0:02:20]} 12. Nd3 {[%clk 0:02:46]}  Qh4 {[%clk 0:02:14]} 13. g3 {[%clk 0:02:43]}  Qh6 {[%clk 0:02:08]} 14. Bg2 {[%clk 0:02:40]}  O-O {[%clk 0:02:05]} 15. O-O {[%clk 0:02:32]}  Ng4 {[%clk 0:01:56]} 16. h3 {[%clk 0:02:25]}  Nf6 {[%clk 0:01:56]} 17. Bxf6 {[%clk 0:02:15]}  Qxf6 {[%clk 0:01:57]} 18. Nc3 {[%clk 0:02:15]}  d4 {[%clk 0:01:56]} 19. Nd5 {[%clk 0:02:04]}  Qd8 {[%clk 0:01:48]} 20. e4 {[%clk 0:02:05]}  Nc6 {[%clk 0:01:46]} 21. f4 {[%clk 0:02:04]}  Ne7 {[%clk 0:01:39]} 22. Nxe7+ {[%clk 0:01:59]}  Bxe7 {[%clk 0:01:39]} 23. e5 {[%clk 0:01:57]}  Qb6 {[%clk 0:01:35]} 24. f5 {[%clk 0:01:56]}  Bd7 {[%clk 0:01:22]} 25. Nf4 {[%clk 0:01:41]}  Bg5 {[%clk 0:00:58]} 26. Nd5 {[%clk 0:01:29]}  Qh6 {[%clk 0:00:57]} 27. Qg4 {[%clk 0:01:17]}  Kh8 {[%clk 0:00:51]} 28. d3 {[%clk 0:01:02]}  Bc6 {[%clk 0:00:49]} 29. h4 {[%clk 0:00:57]}  Be3+ {[%clk 0:00:48]} 30. Kh2 {[%clk 0:00:57]}  Rd8 {[%clk 0:00:34]} 31. e6 {[%clk 0:00:42]}  Bxd5 {[%clk 0:00:07]} 32. Bxd5 {[%clk 0:00:17]}  Qf6 {[%clk 0:00:08]} 33. Bg2 {[%clk 0:00:07]}  b5 {[%clk 0:00:06]} 34. Qe4 {[%clk 0:00:05]}  Re8 {[%clk 0:00:06]} 35. Qc6 {[%clk 0:00:04]}  Qe7 {[%clk 0:00:06]} 36. exf7 {[%clk 0:00:04]}  Qxf7 {[%clk 0:00:07]} 37. Qxb5 {[%clk 0:00:04]}  Rf8 {[%clk 0:00:05]} 38. Qc6 {[%clk 0:00:04]}  Qe7 {[%clk 0:00:05]} 39. Be4 {[%clk 0:00:03]}  Qe5 {[%clk 0:00:05]} 40. Kh3 {[%clk 0:00:04]}  Qf6 {[%clk 0:00:03]} 41. Qxf6 {[%clk 0:00:03]}  Rxf6 {[%clk 0:00:04]} 42. Rb1 {[%clk 0:00:04]}  Rf8 {[%clk 0:00:03]} 43. Rb7 {[%clk 0:00:04]}  Rd8 {[%clk 0:00:03]} 44. f6 {[%clk 0:00:03]}  gxf6 {[%clk 0:00:04]} 45. Rxh7+ {[%clk 0:00:03]}  Kg8 {[%clk 0:00:05]} 46. Rb7 {[%clk 0:00:03]}  Re8 {[%clk 0:00:05]} 47. Kg4 {[%clk 0:00:03]}  Re5 {[%clk 0:00:05]} 48. Bf5 {[%clk 0:00:01]}  Kf8 {[%clk 0:00:06]} 49. h5 {[%clk 0:00:01]}  Kg8 {[%clk 0:00:06]} 50. Bg6 {[%clk 0:00:01]}  Bh6 {[%clk 0:00:07]} 51. Kf3 {[%clk 0:00:01]}  Re3+ {[%clk 0:00:07]} 52. Kf2 {[%clk 0:00:01]}  Re5 {[%clk 0:00:08]} 53. g4 {[%clk 0:00:02]}  Bg5 {[%clk 0:00:08]} 54. Be4 {[%clk 0:00:02]}  Bh6 {[%clk 0:00:08]} 55. Rd7 {[%clk 0:00:02]}  Be3+ {[%clk 0:00:07]} 56. Kf3 {[%clk 0:00:03]}  Ra5 {[%clk 0:00:07]} 57. Bd5+ {[%clk 0:00:03]}  Kh8 {[%clk 0:00:07]} 58. Ke4 {[%clk 0:00:03]}  Ra1 {[%clk 0:00:03]} 59. Kf5 {[%clk 0:00:04]}  Rg1 {[%clk 0:00:04]} 60. Be6 {[%clk 0:00:04]} 1-0


[Site "https://www.chess.com"]

[Event "Titled Tuesday Blitz January 31 Late 2023"]
[White "Kravtsiv, Martyn"]
[Black "Martinez Alcantara, Jose Eduardo"]
[WhiteFideId "14113147"]
[BlackFideId "3805662"]
[WhiteElo "2598"]
[BlackElo "2619"]
[Result "1-0"]
[Round "09"]
[TimeControl "180+2"]
[Date "2023.01.31"]
[WhiteClock "0:00:12"]
[BlackClock "0:00:10"]

1. e4 {[%clk 0:02:57]}  e5 {[%clk 0:02:58]} 2. Nf3 {[%clk 0:02:56]}  Nf6 {[%clk 0:02:59]} 3. Nc3 {[%clk 0:02:56]}  d6 {[%clk 0:02:56]} 4. d4 {[%clk 0:02:55]}  Nbd7 {[%clk 0:02:57]} 5. Bc4 {[%clk 0:02:55]}  Be7 {[%clk 0:02:50]} 6. a4 {[%clk 0:02:54]}  O-O {[%clk 0:02:50]} 7. O-O {[%clk 0:02:54]}  c6 {[%clk 0:02:51]} 8. Re1 {[%clk 0:02:52]}  Qc7 {[%clk 0:02:47]} 9. h3 {[%clk 0:02:46]}  b6 {[%clk 0:02:44]} 10. d5 {[%clk 0:02:43]}  Bb7 {[%clk 0:02:42]} 11. Re2 {[%clk 0:02:40]}  Rac8 {[%clk 0:02:18]} 12. dxc6 {[%clk 0:02:39]}  Bxc6 {[%clk 0:02:19]} 13. Ba6 {[%clk 0:02:39]}  Bb7 {[%clk 0:02:15]} 14. Bxb7 {[%clk 0:02:38]}  Qxb7 {[%clk 0:02:15]} 15. Bg5 {[%clk 0:02:37]}  h6 {[%clk 0:02:14]} 16. Bxf6 {[%clk 0:02:37]}  Nxf6 {[%clk 0:02:15]} 17. Nh4 {[%clk 0:02:34]}  g6 {[%clk 0:02:13]} 18. Qd2 {[%clk 0:02:26]}  Kg7 {[%clk 0:02:11]} 19. g3 {[%clk 0:02:12]}  Rc4 {[%clk 0:01:58]} 20. Qd3 {[%clk 0:02:11]}  Rfc8 {[%clk 0:01:56]} 21. Ng2 {[%clk 0:02:10]}  a6 {[%clk 0:01:53]} 22. Ra3 {[%clk 0:02:03]}  d5 {[%clk 0:01:43]} 23. Rb3 {[%clk 0:01:45]}  dxe4 {[%clk 0:01:35]} 24. Qd2 {[%clk 0:01:43]}  Bb4 {[%clk 0:01:24]} 25. Ne3 {[%clk 0:01:39]}  Bxc3 {[%clk 0:01:15]} 26. bxc3 {[%clk 0:01:37]}  Rxa4 {[%clk 0:01:15]} 27. Qd6 {[%clk 0:01:37]}  Rc6 {[%clk 0:00:48]} 28. Qxe5 {[%clk 0:01:35]}  Qd7 {[%clk 0:00:49]} 29. Kg2 {[%clk 0:01:19]}  Re6 {[%clk 0:00:46]} 30. Qb8 {[%clk 0:01:18]}  b5 {[%clk 0:00:46]} 31. c4 {[%clk 0:01:14]}  Re8 {[%clk 0:00:36]} 32. Qf4 {[%clk 0:01:10]}  bxc4 {[%clk 0:00:30]} 33. Rb6 {[%clk 0:01:10]}  Re6 {[%clk 0:00:30]} 34. Rxe6 {[%clk 0:01:00]}  Qxe6 {[%clk 0:00:31]} 35. Rd2 {[%clk 0:01:00]}  Ra5 {[%clk 0:00:30]} 36. Rd6 {[%clk 0:00:52]}  Qe5 {[%clk 0:00:26]} 37. Qxe5 {[%clk 0:00:42]}  Rxe5 {[%clk 0:00:27]} 38. Rxa6 {[%clk 0:00:43]}  Rc5 {[%clk 0:00:27]} 39. Kf1 {[%clk 0:00:38]}  Nd7 {[%clk 0:00:21]} 40. Rd6 {[%clk 0:00:19]}  Ne5 {[%clk 0:00:20]} 41. Rd5 {[%clk 0:00:19]}  Rxd5 {[%clk 0:00:19]} 42. Nxd5 {[%clk 0:00:20]}  f5 {[%clk 0:00:19]} 43. Ke2 {[%clk 0:00:21]}  Kf7 {[%clk 0:00:18]} 44. Ke3 {[%clk 0:00:21]}  Ke6 {[%clk 0:00:17]} 45. Kd4 {[%clk 0:00:21]}  Kd6 {[%clk 0:00:06]} 46. Ne3 {[%clk 0:00:21]}  Nf3+ {[%clk 0:00:06]} 47. Kxc4 {[%clk 0:00:20]}  Ng1 {[%clk 0:00:07]} 48. h4 {[%clk 0:00:18]}  Nh3 {[%clk 0:00:07]} 49. Nd1 {[%clk 0:00:18]}  Ke5 {[%clk 0:00:08]} 50. Kb5 {[%clk 0:00:17]}  g5 {[%clk 0:00:05]} 51. hxg5 {[%clk 0:00:16]}  hxg5 {[%clk 0:00:06]} 52. c4 {[%clk 0:00:16]}  f4 {[%clk 0:00:07]} 53. c5 {[%clk 0:00:16]}  e3 {[%clk 0:00:02]} 54. gxf4+ {[%clk 0:00:15]}  gxf4 {[%clk 0:00:02]} 55. fxe3 {[%clk 0:00:15]}  fxe3 {[%clk 0:00:03]} 56. Nxe3 {[%clk 0:00:15]}  Nf4 {[%clk 0:00:04]} 57. c6 {[%clk 0:00:13]}  Ne6 {[%clk 0:00:05]} 58. Kb6 {[%clk 0:00:14]}  Kd6 {[%clk 0:00:03]} 59. Nc4+ {[%clk 0:00:14]}  Kd5 {[%clk 0:00:04]} 60. Nd2 {[%clk 0:00:14]}  Kd6 {[%clk 0:00:03]} 61. Nb3 {[%clk 0:00:14]}  Nc7 {[%clk 0:00:03]} 62. Nd4 {[%clk 0:00:13]}  Nd5+ {[%clk 0:00:03]} 63. Kb7 {[%clk 0:00:13]}  Kc5 {[%clk 0:00:02]} 64. Ne6+ {[%clk 0:00:13]}  Kd6 {[%clk 0:00:02]} 65. Ng5 {[%clk 0:00:13]}  Ne7 {[%clk 0:00:02]} 66. c7 {[%clk 0:00:12]}  Kd7 {[%clk 0:00:03]} 67. Ne4 {[%clk 0:00:13]}  Ke6 {[%clk 0:00:03]} 68. Nc5+ {[%clk 0:00:12]}  Kd6 {[%clk 0:00:03]} 69. Nd3 {[%clk 0:00:12]}  Kd5 {[%clk 0:00:04]} 70. Nf4+ {[%clk 0:00:12]}  Kd6 {[%clk 0:00:04]} 71. Ng6 {[%clk 0:00:13]}  Nxg6 {[%clk 0:00:02]} 72. c8=Q {[%clk 0:00:12]}  Ne5 {[%clk 0:00:03]} 73. Qc7+ {[%clk 0:00:13]}  Kd5 {[%clk 0:00:04]} 74. Qe7 {[%clk 0:00:12]}  Ke4 {[%clk 0:00:05]} 75. Kc7 {[%clk 0:00:12]}  Kd4 {[%clk 0:00:06]} 76. Kd6 {[%clk 0:00:12]}  Nc4+ {[%clk 0:00:07]} 77. Ke6 {[%clk 0:00:12]}  Ne3 {[%clk 0:00:07]} 78. Qh4+ {[%clk 0:00:13]}  Kd3 {[%clk 0:00:07]} 79. Qg3 {[%clk 0:00:13]}  Ke4 {[%clk 0:00:07]} 80. Qh4+ {[%clk 0:00:12]}  Kd3 {[%clk 0:00:08]} 81. Ke5 {[%clk 0:00:12]}  Nc4+ {[%clk 0:00:09]} 82. Kd5 {[%clk 0:00:12]}  Ne3+ {[%clk 0:00:10]} 83. Kc5 {[%clk 0:00:13]}  Kd2 {[%clk 0:00:09]} 84. Qe4 {[%clk 0:00:13]}  Nc2 {[%clk 0:00:09]} 85. Qf3 {[%clk 0:00:12]}  Ne1 {[%clk 0:00:09]} 86. Qf2+ {[%clk 0:00:12]}  Kd1 {[%clk 0:00:09]} 87. Kd4 {[%clk 0:00:12]}  Nc2+ {[%clk 0:00:10]} 88. Kc3 {[%clk 0:00:12]} 1-0


[Site "https://www.chess.com"]

[Event "Titled Tuesday Blitz January 31 Late 2023"]
[White "Chigaev, Maksim"]
[Black "Petkov, Momchil"]
[WhiteFideId "4108116"]
[BlackFideId "2921642"]
[WhiteElo "2628"]
[BlackElo "2522"]
[Result "0-1"]
[Round "09"]
[TimeControl "180+2"]
[Date "2023.01.31"]
[WhiteClock "0:00:08"]
[BlackClock "0:00:10"]

1. e4 {[%clk 0:03:00]}  c5 {[%clk 0:02:56]} 2. Nf3 {[%clk 0:03:00]}  e6 {[%clk 0:02:57]} 3. d4 {[%clk 0:02:59]}  cxd4 {[%clk 0:02:58]} 4. Nxd4 {[%clk 0:02:59]}  a6 {[%clk 0:02:58]} 5. g3 {[%clk 0:02:58]}  d5 {[%clk 0:02:54]} 6. Nb3 {[%clk 0:02:54]}  Nf6 {[%clk 0:02:49]} 7. exd5 {[%clk 0:02:53]}  exd5 {[%clk 0:02:50]} 8. Bg2 {[%clk 0:02:52]}  Bg4 {[%clk 0:02:50]} 9. Qd3 {[%clk 0:02:48]}  Nc6 {[%clk 0:02:48]} 10. O-O {[%clk 0:02:45]}  Be7 {[%clk 0:02:49]} 11. Nc3 {[%clk 0:02:43]}  Nb4 {[%clk 0:02:47]} 12. Qd2 {[%clk 0:02:43]}  Bf5 {[%clk 0:02:30]} 13. Nd4 {[%clk 0:02:40]}  Bg6 {[%clk 0:02:28]} 14. b3 {[%clk 0:02:07]}  O-O {[%clk 0:02:24]} 15. Bb2 {[%clk 0:02:08]}  Ne4 {[%clk 0:02:18]} 16. Nxe4 {[%clk 0:02:06]}  dxe4 {[%clk 0:02:18]} 17. a3 {[%clk 0:01:51]}  Nc6 {[%clk 0:02:16]} 18. Rfd1 {[%clk 0:01:37]}  Ne5 {[%clk 0:02:00]} 19. Qe2 {[%clk 0:01:16]}  Qc7 {[%clk 0:01:09]} 20. Bxe4 {[%clk 0:01:15]}  Bf6 {[%clk 0:01:06]} 21. Bxg6 {[%clk 0:00:42]}  hxg6 {[%clk 0:01:07]} 22. f4 {[%clk 0:00:26]}  Nc6 {[%clk 0:01:05]} 23. Rab1 {[%clk 0:00:18]}  Rfe8 {[%clk 0:01:05]} 24. Qf2 {[%clk 0:00:16]}  Re4 {[%clk 0:00:51]} 25. Nxc6 {[%clk 0:00:15]}  Qxc6 {[%clk 0:00:52]} 26. Bxf6 {[%clk 0:00:15]}  gxf6 {[%clk 0:00:44]} 27. Re1 {[%clk 0:00:12]}  f5 {[%clk 0:00:44]} 28. Rxe4 {[%clk 0:00:11]}  fxe4 {[%clk 0:00:45]} 29. Rd1 {[%clk 0:00:10]}  Qc3 {[%clk 0:00:39]} 30. Qd2 {[%clk 0:00:09]}  Qf3 {[%clk 0:00:20]} 31. Rf1 {[%clk 0:00:06]}  Qh5 {[%clk 0:00:20]} 32. Qe3 {[%clk 0:00:06]}  Re8 {[%clk 0:00:21]} 33. c4 {[%clk 0:00:05]}  Qg4 {[%clk 0:00:19]} 34. Kg2 {[%clk 0:00:05]}  Qd7 {[%clk 0:00:19]} 35. Re1 {[%clk 0:00:04]}  Qd6 {[%clk 0:00:19]} 36. b4 {[%clk 0:00:04]}  Qc6 {[%clk 0:00:19]} 37. c5 {[%clk 0:00:04]}  Qd5 {[%clk 0:00:20]} 38. h3 {[%clk 0:00:04]}  Re7 {[%clk 0:00:17]} 39. Re2 {[%clk 0:00:05]}  Qc4 {[%clk 0:00:17]} 40. Rd2 {[%clk 0:00:05]}  Re8 {[%clk 0:00:17]} 41. Rd4 {[%clk 0:00:05]}  Qc2+ {[%clk 0:00:17]} 42. Rd2 {[%clk 0:00:05]}  Qc4 {[%clk 0:00:18]} 43. h4 {[%clk 0:00:05]}  Qc1 {[%clk 0:00:16]} 44. Re2 {[%clk 0:00:05]}  Qd1 {[%clk 0:00:16]} 45. f5 {[%clk 0:00:04]}  gxf5 {[%clk 0:00:13]} 46. Rf2 {[%clk 0:00:04]}  Qd5 {[%clk 0:00:12]} 47. Kh2 {[%clk 0:00:04]}  Re5 {[%clk 0:00:12]} 48. Qg5+ {[%clk 0:00:04]}  Kf8 {[%clk 0:00:07]} 49. Qe3 {[%clk 0:00:05]}  Qd3 {[%clk 0:00:07]} 50. Qxd3 {[%clk 0:00:04]}  exd3 {[%clk 0:00:07]} 51. Kg2 {[%clk 0:00:05]}  Re3 {[%clk 0:00:06]} 52. Rd2 {[%clk 0:00:04]}  Ke7 {[%clk 0:00:06]} 53. Kf2 {[%clk 0:00:05]}  f4 {[%clk 0:00:07]} 54. gxf4 {[%clk 0:00:05]}  Rh3 {[%clk 0:00:08]} 55. a4 {[%clk 0:00:03]}  Ke6 {[%clk 0:00:07]} 56. a5 {[%clk 0:00:02]}  Kd5 {[%clk 0:00:07]} 57. h5 {[%clk 0:00:02]}  Kc4 {[%clk 0:00:07]} 58. h6 {[%clk 0:00:02]}  Rxh6 {[%clk 0:00:07]} 59. Ke3 {[%clk 0:00:02]}  Rh3+ {[%clk 0:00:07]} 60. Ke4 {[%clk 0:00:02]}  Kc3 {[%clk 0:00:08]} 61. Rg2 {[%clk 0:00:03]}  d2 {[%clk 0:00:08]} 62. Rg1 {[%clk 0:00:03]}  Kc2 {[%clk 0:00:09]} 63. Kd5 {[%clk 0:00:03]}  Rh6 {[%clk 0:00:09]} 64. Rf1 {[%clk 0:00:02]}  d1=Q+ {[%clk 0:00:09]} 65. Rxd1 {[%clk 0:00:02]}  Kxd1 {[%clk 0:00:10]} 66. f5 {[%clk 0:00:03]}  Rc6 {[%clk 0:00:11]} 67. Ke5 {[%clk 0:00:03]}  f6+ {[%clk 0:00:09]} 68. Kd5 {[%clk 0:00:04]}  Kc2 {[%clk 0:00:10]} 69. Kc4 {[%clk 0:00:05]}  Kb2 {[%clk 0:00:09]} 70. b5 {[%clk 0:00:06]}  axb5+ {[%clk 0:00:09]} 71. Kxb5 {[%clk 0:00:07]}  Kc3 {[%clk 0:00:10]} 72. a6 {[%clk 0:00:07]}  Rxa6 {[%clk 0:00:10]} 73. c6 {[%clk 0:00:08]}  Rxc6 {[%clk 0:00:10]} 0-1


[Site "https://www.chess.com"]

[Event "Titled Tuesday Blitz January 31 Late 2023"]
[White "Jobava, Baadur"]
[Black "Predke, Alexandr"]
[WhiteFideId "13601520"]
[BlackFideId "24107581"]
[WhiteElo "2578"]
[BlackElo "2685"]
[Result "1-0"]
[Round "09"]
[TimeControl "180+2"]
[Date "2023.01.31"]
[WhiteClock "0:00:36"]
[BlackClock "0:00:01"]

1. b3 {[%clk 0:02:58]}  c5 {[%clk 0:02:59]} 2. Bb2 {[%clk 0:02:57]}  Nc6 {[%clk 0:02:59]} 3. c4 {[%clk 0:02:57]}  Nf6 {[%clk 0:02:58]} 4. Nf3 {[%clk 0:02:57]}  e6 {[%clk 0:02:57]} 5. e3 {[%clk 0:02:58]}  Be7 {[%clk 0:02:57]} 6. Be2 {[%clk 0:02:57]}  O-O {[%clk 0:02:57]} 7. O-O {[%clk 0:02:58]}  d5 {[%clk 0:02:58]} 8. cxd5 {[%clk 0:02:58]}  exd5 {[%clk 0:02:58]} 9. d4 {[%clk 0:02:58]}  Ne4 {[%clk 0:02:56]} 10. dxc5 {[%clk 0:02:57]}  Bxc5 {[%clk 0:02:57]} 11. Nbd2 {[%clk 0:02:57]}  Bf5 {[%clk 0:02:53]} 12. Rc1 {[%clk 0:02:57]}  Bb6 {[%clk 0:02:49]} 13. Nxe4 {[%clk 0:02:52]}  dxe4 {[%clk 0:02:39]} 14. Ne5 {[%clk 0:02:52]}  Nb4 {[%clk 0:02:15]} 15. Bc4 {[%clk 0:02:20]}  Qe7 {[%clk 0:01:35]} 16. Qh5 {[%clk 0:02:17]}  Be6 {[%clk 0:01:31]} 17. a3 {[%clk 0:01:27]}  Bxc4 {[%clk 0:01:22]} 18. Rxc4 {[%clk 0:01:27]}  Nd3 {[%clk 0:01:22]} 19. Nxd3 {[%clk 0:01:24]}  exd3 {[%clk 0:01:22]} 20. Rh4 {[%clk 0:01:24]}  h6 {[%clk 0:00:40]} 21. Bxg7 {[%clk 0:01:24]}  Qxh4 {[%clk 0:00:40]} 22. Qxh4 {[%clk 0:01:25]}  Kxg7 {[%clk 0:00:40]} 23. Rd1 {[%clk 0:01:25]}  Rfd8 {[%clk 0:00:37]} 24. Qg4+ {[%clk 0:01:17]}  Kf8 {[%clk 0:00:32]} 25. g3 {[%clk 0:01:01]}  Rac8 {[%clk 0:00:29]} 26. Kg2 {[%clk 0:01:02]}  Rc6 {[%clk 0:00:18]} 27. Qe4 {[%clk 0:00:49]}  d2 {[%clk 0:00:12]} 28. Qb4+ {[%clk 0:00:48]}  Bc5 {[%clk 0:00:13]} 29. Qxb7 {[%clk 0:00:46]}  Rcd6 {[%clk 0:00:10]} 30. b4 {[%clk 0:00:43]}  Bb6 {[%clk 0:00:10]} 31. Kf3 {[%clk 0:00:42]}  Rd3 {[%clk 0:00:06]} 32. Ke2 {[%clk 0:00:41]}  Kg7 {[%clk 0:00:05]} 33. Qe4 {[%clk 0:00:41]}  Rxa3 {[%clk 0:00:05]} 34. Rxd2 {[%clk 0:00:40]}  Rxd2+ {[%clk 0:00:05]} 35. Kxd2 {[%clk 0:00:41]}  Ra2+ {[%clk 0:00:05]} 36. Ke1 {[%clk 0:00:40]}  Bd8 {[%clk 0:00:05]} 37. Qg4+ {[%clk 0:00:40]}  Kf8 {[%clk 0:00:04]} 38. Qd4 {[%clk 0:00:39]}  Bb6 {[%clk 0:00:02]} 39. Qh8+ {[%clk 0:00:39]}  Ke7 {[%clk 0:00:02]} 40. Qxh6 {[%clk 0:00:40]}  Ra1+ {[%clk 0:00:02]} 41. Ke2 {[%clk 0:00:40]}  Ra2+ {[%clk 0:00:03]} 42. Kf3 {[%clk 0:00:40]}  Rd2 {[%clk 0:00:03]} 43. Qg5+ {[%clk 0:00:40]}  Ke8 {[%clk 0:00:02]} 44. h4 {[%clk 0:00:39]}  Rd6 {[%clk 0:00:02]} 45. h5 {[%clk 0:00:39]}  Bd8 {[%clk 0:00:02]} 46. Qg8+ {[%clk 0:00:38]}  Ke7 {[%clk 0:00:02]} 47. Qg5+ {[%clk 0:00:36]}  Ke8 {[%clk 0:00:02]} 48. Qb5+ {[%clk 0:00:36]}  Kf8 {[%clk 0:00:01]} 49. Qc5 {[%clk 0:00:35]}  Be7 {[%clk 0:00:02]} 50. Qxa7 {[%clk 0:00:36]}  Rf6+ {[%clk 0:00:01]} 51. Kg2 {[%clk 0:00:36]} 1-0


[Site "https://www.chess.com"]

[Event "Titled Tuesday Blitz January 31 Late 2023"]
[White "Mikaelyan, Arman"]
[Black "Pranav, V"]
[WhiteFideId "13304852"]
[BlackFideId "25060783"]
[WhiteElo "2523"]
[BlackElo "2597"]
[Result "0-1"]
[Round "09"]
[TimeControl "180+2"]
[Date "2023.01.31"]
[WhiteClock "0:00:09"]
[BlackClock "0:00:03"]

1. a3 {[%clk 0:02:55]}  e5 {[%clk 0:03:00]} 2. e3 {[%clk 0:02:55]}  d5 {[%clk 0:02:59]} 3. d4 {[%clk 0:02:55]}  exd4 {[%clk 0:03:00]} 4. exd4 {[%clk 0:02:42]}  Nf6 {[%clk 0:03:00]} 5. Nf3 {[%clk 0:02:42]}  Bd6 {[%clk 0:02:59]} 6. Bd3 {[%clk 0:02:39]}  O-O {[%clk 0:02:59]} 7. O-O {[%clk 0:02:39]}  h6 {[%clk 0:02:59]} 8. Nc3 {[%clk 0:02:37]}  c6 {[%clk 0:02:58]} 9. h3 {[%clk 0:02:37]}  Re8 {[%clk 0:02:57]} 10. Re1 {[%clk 0:02:33]}  Nbd7 {[%clk 0:02:57]} 11. Rxe8+ {[%clk 0:02:26]}  Qxe8 {[%clk 0:02:56]} 12. Be3 {[%clk 0:02:26]}  Nf8 {[%clk 0:02:55]} 13. Qf1 {[%clk 0:02:09]}  Qd8 {[%clk 0:02:50]} 14. Re1 {[%clk 0:02:08]}  Qc7 {[%clk 0:02:43]} 15. Ne5 {[%clk 0:02:04]}  Ne6 {[%clk 0:02:40]} 16. f4 {[%clk 0:02:01]}  b5 {[%clk 0:02:36]} 17. f5 {[%clk 0:01:53]}  Nf8 {[%clk 0:02:35]} 18. Bf4 {[%clk 0:01:47]}  a5 {[%clk 0:02:30]} 19. Ne2 {[%clk 0:01:16]}  c5 {[%clk 0:02:20]} 20. c3 {[%clk 0:01:13]}  c4 {[%clk 0:02:20]} 21. Bb1 {[%clk 0:01:13]}  b4 {[%clk 0:02:20]} 22. Ng3 {[%clk 0:01:13]}  bxc3 {[%clk 0:02:17]} 23. bxc3 {[%clk 0:01:13]}  Rb8 {[%clk 0:02:17]} 24. Qe2 {[%clk 0:01:06]}  Rb3 {[%clk 0:02:10]} 25. Qd2 {[%clk 0:00:42]}  Rxa3 {[%clk 0:02:06]} 26. Bxh6 {[%clk 0:00:37]}  N6h7 {[%clk 0:01:47]} 27. Bf4 {[%clk 0:00:33]}  Ra1 {[%clk 0:01:34]} 28. Nh5 {[%clk 0:00:31]}  f6 {[%clk 0:01:04]} 29. Ng6 {[%clk 0:00:30]}  Rxb1 {[%clk 0:01:04]} 30. Rxb1 {[%clk 0:00:23]}  Bxf5 {[%clk 0:01:04]} 31. Bxd6 {[%clk 0:00:10]}  Qxd6 {[%clk 0:01:00]} 32. Rb7 {[%clk 0:00:08]}  Bxg6 {[%clk 0:01:00]} 33. Rxg7+ {[%clk 0:00:08]}  Kh8 {[%clk 0:01:00]} 34. Qh6 {[%clk 0:00:09]}  Bxh5 {[%clk 0:00:59]} 35. Rb7 {[%clk 0:00:07]}  Qg3 {[%clk 0:00:52]} 36. Qxh5 {[%clk 0:00:06]}  a4 {[%clk 0:00:49]} 37. Qxd5 {[%clk 0:00:04]}  Qxc3 {[%clk 0:00:44]} 38. Kh2 {[%clk 0:00:04]}  Qe3 {[%clk 0:00:39]} 39. Qxc4 {[%clk 0:00:05]}  a3 {[%clk 0:00:38]} 40. Qa6 {[%clk 0:00:04]}  Qf4+ {[%clk 0:00:35]} 41. Kh1 {[%clk 0:00:05]}  Qc1+ {[%clk 0:00:31]} 42. Kh2 {[%clk 0:00:05]}  Qf4+ {[%clk 0:00:21]} 43. Kh1 {[%clk 0:00:05]}  Ng5 {[%clk 0:00:10]} 44. Qxa3 {[%clk 0:00:06]}  Kg8 {[%clk 0:00:08]} 45. Qb3+ {[%clk 0:00:06]}  Nfe6 {[%clk 0:00:08]} 46. Re7 {[%clk 0:00:05]}  Qd6 {[%clk 0:00:04]} 47. Re8+ {[%clk 0:00:05]}  Kf7 {[%clk 0:00:04]} 48. Rb8 {[%clk 0:00:05]}  Qxd4 {[%clk 0:00:04]} 49. Rb7+ {[%clk 0:00:06]}  Kg6 {[%clk 0:00:03]} 50. Qb1+ {[%clk 0:00:06]}  f5 {[%clk 0:00:04]} 51. Qe1 {[%clk 0:00:07]}  Ne4 {[%clk 0:00:03]} 52. Re7 {[%clk 0:00:05]}  Kf6 {[%clk 0:00:04]} 53. Re8 {[%clk 0:00:05]}  Nf2+ {[%clk 0:00:03]} 54. Kh2 {[%clk 0:00:05]}  Ne4 {[%clk 0:00:02]} 55. Qh4+ {[%clk 0:00:06]}  Kf7 {[%clk 0:00:02]} 56. Qh5+ {[%clk 0:00:06]}  Kf6 {[%clk 0:00:02]} 57. Qh8+ {[%clk 0:00:06]}  Ng7 {[%clk 0:00:02]} 58. Qf8+ {[%clk 0:00:05]}  Kg6 {[%clk 0:00:02]} 59. Re7 {[%clk 0:00:06]}  Qd6+ {[%clk 0:00:02]} 60. Kh1 {[%clk 0:00:06]}  Qd1+ {[%clk 0:00:02]} 61. Kh2 {[%clk 0:00:07]}  Qd6+ {[%clk 0:00:02]} 62. Kh1 {[%clk 0:00:08]}  Nh5 {[%clk 0:00:02]} 63. Qg8+ {[%clk 0:00:08]}  Kh6 {[%clk 0:00:01]} 64. Re8 {[%clk 0:00:08]}  Qd1+ {[%clk 0:00:01]} 65. Kh2 {[%clk 0:00:08]}  Qd6+ {[%clk 0:00:02]} 66. Kg1 {[%clk 0:00:08]}  Nef6 {[%clk 0:00:02]} 67. Qh8+ {[%clk 0:00:08]}  Kg5 {[%clk 0:00:03]} 68. Re1 {[%clk 0:00:08]}  Qd4+ {[%clk 0:00:03]} 69. Kh2 {[%clk 0:00:09]}  Ng4+ {[%clk 0:00:03]} 70. hxg4 {[%clk 0:00:09]}  Qxh8 {[%clk 0:00:03]} 71. gxh5 {[%clk 0:00:08]}  Qb8+ {[%clk 0:00:03]} 72. Kg1 {[%clk 0:00:09]}  Qg3 {[%clk 0:00:04]} 73. Rf1 {[%clk 0:00:10]}  Qe3+ {[%clk 0:00:03]} 74. Kh2 {[%clk 0:00:09]}  Qe5+ {[%clk 0:00:03]} 75. Kg1 {[%clk 0:00:09]}  Kxh5 {[%clk 0:00:04]} 76. Rf3 {[%clk 0:00:09]}  Kg4 {[%clk 0:00:04]} 77. Kf2 {[%clk 0:00:10]}  Qb2+ {[%clk 0:00:04]} 78. Kf1 {[%clk 0:00:10]}  Qb1+ {[%clk 0:00:04]} 79. Kf2 {[%clk 0:00:10]}  Qb6+ {[%clk 0:00:05]} 80. Kf1 {[%clk 0:00:11]}  Qc6 {[%clk 0:00:05]} 81. Kf2 {[%clk 0:00:11]}  f4 {[%clk 0:00:05]} 82. Rh3 {[%clk 0:00:11]}  Qc2+ {[%clk 0:00:04]} 83. Kf1 {[%clk 0:00:11]}  Qd2 {[%clk 0:00:04]} 84. Kg1 {[%clk 0:00:09]}  Qe1+ {[%clk 0:00:04]} 85. Kh2 {[%clk 0:00:10]}  Qf2 {[%clk 0:00:03]} 86. Rb3 {[%clk 0:00:10]}  Qc2 {[%clk 0:00:03]} 87. Rh3 {[%clk 0:00:09]}  Kf5 {[%clk 0:00:03]} 88. Rf3 {[%clk 0:00:09]}  Ke4 {[%clk 0:00:03]} 89. Rh3 {[%clk 0:00:09]}  Qd1 {[%clk 0:00:03]} 90. Ra3 {[%clk 0:00:07]}  Qh5+ {[%clk 0:00:02]} 91. Kg1 {[%clk 0:00:08]}  Qc5+ {[%clk 0:00:03]} 92. Kh2 {[%clk 0:00:09]}  Qxa3 {[%clk 0:00:03]} 0-1


[Site "https://www.chess.com"]